[Event "44th Chess Olympiad Open 2022"]
[Site "Chennai"]
[Date "2022.08.06"]
[Round "8.28"]
[White "Georgiadis, Nico"]
[Black "Tissir, Mohamed"]
[Result "1-0"]
[WhiteElo "2578"]
[BlackElo "2366"]
[Annotator "TA"]
[PlyCount "61"]
[EventDate "2022.??.??"]
[TimeControl "60"]

{[%evp 21,61,47,100,92,85,90,121,114,102,117,117,112,100,111,181,180,202,185,
239,255,239,254,230,204,188,197,330,316,315,336,303,304,770,754,767,760,754,
647,1051,988,1706,1525]} 1. e4 {[%emt 0:00:04]} c5 {[%emt 0:00:13]} 2. Nf3 {
[%emt 0:00:06]} d6 {[%emt 0:00:04]} 3. d4 {[%emt 0:00:07]} cxd4 {[%emt 0:00:05]
} 4. Nxd4 {[%emt 0:00:08]} Nf6 {[%emt 0:00:08]} 5. Nc3 {[%emt 0:00:05]} a6 {
[%emt 0:00:04]} 6. Be3 {[%emt 0:00:08]} Ng4 {[%emt 0:02:42]} 7. Bc1 {[%emt 0:
00:00]} Nf6 {[%emt 0:00:22]} 8. Be3 {[%emt 0:00:18]} e6 {[%emt 0:08:00]} 9. Be2
{[%emt 0:00:28]} Be7 {[%emt 0:02:21]} 10. f4 {[%emt 0:01:16] Recently 10.a3
got a lot of attention.} Qc7 {[%emt 0:02:55]} 11. g4 {[%emt 0:02:17][%cal
Yg2g4,Yg4g5]} Nc6 {[%emt 0:04:00]} (11... d5 $14) 12. g5 $16 {[%emt 0:00:00]
B84: Sicilian Scheveningen: 6 Be2 a6, lines without early Be3.} Nd7 {[%emt 0:
00:07]} 13. h4 {[%emt 0:08:44]} b5 {[%emt 0:13:42] [#]} 14. Nxc6 $1 {[%emt 0:
04:26] White is better.} Qxc6 {[%emt 0:02:35]} 15. Qd4 {[%emt 0:06:41] [#]} Rg8
$146 {[%emt 0:10:26]} ({Predecessor:} 15... O-O 16. O-O-O Rb8 17. h5 Bb7 18. h6
e5 19. fxe5 Nxe5 20. Nd5 Bd8 21. hxg7 Kxg7 {½-½ (56) Brunello,M (2367)
-Nandhidhaa,P (2365) Tornelo INT 2020}) 16. O-O-O {[%emt 0:11:36]} Rb8 {
[%emt 0:11:51]} 17. a3 $36 {[%emt 0:26:02] White is really pushing. 0x0.
0020a9c0880ddp-1022s more active pieces. The black rooks are badly placed.} Rb7
{[%emt 0:22:26]} (17... a5 $16 {is a better defense.}) 18. Rhf1 $18 {[%emt 0:
00:00]} Rc7 {[%emt 0:00:21]} 19. Kb1 {[%emt 0:09:36]} Qc5 {[%emt 0:00:00]} (
19... Rb7 $142 20. f5 Rc7) 20. Qd2 {[%emt 0:05:38]} Qc6 {[%emt 0:00:33]} 21. f5
{[%emt 0:00:56]} Ne5 {[%emt 0:00:49]} 22. fxe6 {[%emt 0:04:39]} fxe6 {[%emt 0:
00:21]} 23. Bd4 {[%emt 0:03:27]} Nc4 {[%emt 0:04:31]} (23... g6 {was worth a
try.} 24. Rf2 Nc4 25. Bxc4 (25. Qf4 Rf8 $16) 25... bxc4) 24. Bxc4 {[%emt 0:00:
00]} (24. Qf4 Rf8 25. Qg3 e5 $16) 24... Qxc4 {[%emt 0:00:01]} 25. g6 {[%emt 0:
01:13]} ({Weaker is} 25. Qf2 Rf8 26. Qg1 Rxf1 27. Rxf1 e5 $14) (25. Bb6 Rd7 26.
b3 Qc6 $18) 25... hxg6 {[%emt 0:06:16]} 26. Qg2 {[%emt 0:01:45]} ({Not} 26. Qf2
e5 $16) 26... a5 $2 {[%emt 0:02:18]} (26... g5 27. hxg5 e5) 27. Qxg6+ {[%emt 0:
01:46] White is clearly winning.} (27. Qf2 Rf8 28. Qg1 Rxf1 29. Rxf1 b4 $11)
27... Kd7 {[%emt 0:00:03]} 28. e5 {[%emt 0:04:47]} d5 {[%emt 0:00:00]} 29. Rf7
{[%emt 0:00:29] Bb6 is the strong threat.} Re8 {[%emt 0:00:05]} 30. Bb6 {
[%emt 0:01:31]} b4 {[%emt 0:03:30] [#]} 31. Nxd5 $1 {[%emt 0:00:21] Weighted
Error Value: White=0.06 (flawless) /Black=0.38} 1-0

[Event "44th Chess Olympiad Open 2022"]
[Site "Chennai"]
[Date "2022.08.06"]
[Round "8.28"]
[White "Pelletier, Yannick"]
[Black "Hadj Kholti, Yasser"]
[Result "1-0"]
[WhiteElo "2551"]
[BlackElo "1871"]
[Annotator "TA"]
[PlyCount "73"]
[EventDate "2022.??.??"]
[TimeControl "60"]

{[%evp 15,73,15,31,31,31,34,36,42,32,19,50,52,54,54,48,52,54,28,27,22,34,26,34,
12,9,8,28,18,23,14,352,362,476,476,475,475,475,456,475,465,459,452,467,454,636,
625,585,583,1135,1125,1084,1084,1360,1220,1505,1127,1061,1061,1087,1068]} 1. d4
{[%emt 0:00:04]} Nf6 {[%emt 0:00:11]} 2. c4 {[%emt 0:00:21]} e6 {[%emt 0:00:11]
} 3. Nf3 {[%emt 0:00:16]} b6 {[%emt 0:00:14]} 4. g3 {[%emt 0:01:57]} Bb4+ {
[%emt 0:01:03]} 5. Bd2 {[%emt 0:00:14]} Bxd2+ {[%emt 0:00:23]} 6. Qxd2 {
[%emt 0:00:10]} Bb7 {[%emt 0:00:05]} 7. Bg2 {[%emt 0:00:05]} O-O {[%emt 0:00:
00]} 8. O-O {[%emt 0:11:14]} d6 {[%emt 0:01:46]} 9. Qd3 {[%emt 0:01:17] E16:
Queen's Indian: 4 g3 Bb7 5 Bg2 Bb4+.} Be4 {[%emt 0:06:50]} 10. Qe3 {[%emt 0:00:
00]} Bb7 {[%emt 0:03:53]} 11. Nc3 {[%emt 0:00:06] White is slightly better.}
Nbd7 {[%emt 0:01:54]} 12. Qd3 {[%emt 0:00:27]} Qe7 {[%emt 0:02:43]} 13. e4 {
[%emt 0:00:24]} Rfd8 {[%emt 0:02:24]} 14. Rfe1 {[%emt 0:00:20] [#]} a6 $146 {
[%emt 0:04:30]} ({Predecessor:} 14... c6 15. d5 Ne5 16. Nxe5 dxe5 17. Qe2 c5
18. a4 a5 19. Rad1 Ne8 20. Qh5 Qf6 21. f4 exf4 22. e5 Qg6 23. Qxg6 hxg6 24.
gxf4 exd5 25. cxd5 {1-0 (35) Arsovic,G (2368)-Jevtic,S (2236) Jahorina 2018})
15. Rad1 {[%emt 0:04:09]} c5 {[%emt 0:03:33]} 16. Qc2 {[%emt 0:07:00]} (16. d5
$5 {[%cal Rd5e6]}) 16... cxd4 {[%emt 0:09:20]} 17. Nxd4 {[%emt 0:01:58]} Ne5 {
[%emt 0:04:05]} 18. b3 {[%emt 0:00:21]} Qc7 {[%emt 0:04:00]} 19. Qb2 {[%emt 0:
00:00]} Rac8 {[%emt 0:04:47][%cal Yb6b5]} 20. a4 {[%emt 0:02:35] Inhibits b5.}
Nc6 {[%emt 0:02:24]} 21. Nc2 {[%emt 0:07:29]} Ne7 {[%emt 0:12:38]} 22. Ne3 {
[%emt 0:00:00]} Qc5 $2 {[%emt 0:03:32] Loses the game.} (22... Nc6 $11) 23. e5
$1 $18 {[%emt 0:03:38]} Nfd5 {[%emt 0:03:21]} 24. Ne4 {[%emt 0:00:00] White is
clearly winning.} ({Weaker is} 24. cxd5 Qxc3 25. Qxc3 Rxc3 $16) (24. Ncxd5 exd5
25. cxd5 (25. Nxd5 Bxd5 26. cxd5 dxe5 $18) 25... b5 $18) 24... Nxe3 {[%emt 0:
00:08]} 25. Nxc5 {[%emt 0:00:14] Discovered Attack} Nxd1 {[%emt 0:00:06]} 26.
Rxd1 {[%emt 0:00:13]} Bxg2 {[%emt 0:00:09] [#]} 27. Rxd6 $1 {[%emt 0:08:15]
And now Nxe6 would win.} bxc5 {[%emt 0:05:40]} (27... Bc6 28. Nxa6) 28. Kxg2 {
[%emt 0:02:05]} Nc6 {[%emt 0:04:14]} 29. Qd2 {[%emt 0:00:00][%cal Yd6c6] Rxc6!
is the strong threat.} Kf8 {[%emt 0:00:34]} (29... Re8 $142 30. Qe3 Nb4) 30.
Qe3 {[%emt 0:05:02]} Nd4 {[%emt 0:02:19]} 31. b4 {[%emt 0:01:55]} Rxd6 {
[%emt 0:03:41]} 32. exd6 {[%emt 0:00:05] [#] Hoping for bxc5. KQ-KRN} Ke8 {
[%emt 0:00:17]} 33. bxc5 {[%emt 0:02:19]} Nc6 {[%emt 0:00:00]} 34. Qd3 {
[%emt 0:01:54] Strongly threatening d7+.} Ne5 {[%emt 0:00:42]} 35. Qxh7 {
[%emt 0:03:45]} Rxc5 {[%emt 0:00:12]} 36. Qxg7 {[%emt 0:00:27] Black must now
prevent Qg5.} Kd7 {[%emt 0:00:26]} 37. h4 {[%emt 0:04:36] Weighted Error Value:
White=0.06 (flawless) /Black=0.47} 1-0

[Event "44th Chess Olympiad Open 2022"]
[Site "Chennai"]
[Date "2022.08.06"]
[Round "8.28"]
[White "Choukri, Adel"]
[Black "Bogner, Sebastian"]
[Result "1-0"]
[WhiteElo "2306"]
[BlackElo "2545"]
[Annotator "TA"]
[PlyCount "75"]
[EventDate "2022.??.??"]
[TimeControl "60"]

{[%evp 18,75,1,13,19,10,211,228,214,214,199,216,305,292,291,296,323,298,345,
362,326,287,295,222,250,223,226,225,224,182,164,109,202,194,199,167,446,446,
610,253,285,296,283,300,296,288,381,353,396,407,425,414,392,408,846,831,1193,
706,2458,554]} 1. e4 {[%emt 0:00:16] Meulders,R} c5 {[%emt 0:00:08]} 2. Nf3 {
[%emt 0:00:16]} e6 {[%emt 0:00:21]} 3. d4 {[%emt 0:01:18]} cxd4 {[%emt 0:00:06]
} 4. Nxd4 {[%emt 0:00:20]} Nc6 {[%emt 0:00:06]} 5. Nc3 {[%emt 0:04:22]} Qc7 {
[%emt 0:00:19]} 6. Ndb5 {[%emt 0:04:14]} Qb8 {[%emt 0:00:40]} 7. Be3 {[%emt 0:
00:00]} a6 {[%emt 0:02:50]} 8. Bb6 {[%emt 0:03:55]} axb5 {[%emt 0:00:23]} 9.
Nxb5 {[%emt 0:00:07]} Bb4+ {[%emt 0:02:50]} 10. c3 {[%emt 0:00:08]} Ba5 $1 {
[%emt 0:01:12] B47: Sicilian: Taimanov: 5 Nc3 Qc7 6 f4, 6 g3 and 6 Be2.} 11.
Nc7+ $1 {[%emt 0:00:15]} Kf8 $2 {[%emt 0:09:33]} (11... Qxc7 $11 12. Bxc7 Bxc7)
12. Nxa8 $18 {[%emt 0:01:50]} Qxa8 {[%emt 0:00:15] [#] White is clearly better.
} 13. Qd6+ $1 {[%emt 0:00:43]} Nge7 {[%emt 0:06:21] [#]} 14. Qa3 $1 {[%emt 0:
00:00]} f5 {[%emt 0:19:47]} (14... Qb8 {was worth a try.} 15. Bxa5 Qe5) 15. b4
{[%emt 0:08:54][%cal Yb2b4,Yb4a5]} fxe4 {[%emt 0:00:22]} 16. bxa5 {[%emt 0:00:
28] [#]} Ke8 $146 {[%emt 0:06:20]} ({Predecessor:} 16... Kf7 17. Qd6 Nd5 18.
Bc4 Nxb6 19. axb6 Qa5 20. O-O Qxc3 21. Rac1 Qd4 22. Qxd4 Nxd4 {1-0 (46)
Ponomariov,R (2616)-Ivanisevic,I (2447) Batumi 1999 CBM 074 [Meulders,R]}) 17.
c4 {[%emt 0:04:59] Against Nd5} Nf5 {[%emt 0:01:24]} 18. Be2 {[%emt 0:01:11]}
Qb8 {[%emt 0:13:32]} 19. Qc3 {[%emt 0:03:02] Inhibits Nfd4.} Rf8 {[%emt 0:00:
00]} 20. h4 {[%emt 0:20:15]} Qd6 {[%emt 0:07:58]} 21. Rd1 {[%emt 0:04:01]
Against Ncd4} Qe7 {[%emt 0:03:36]} 22. g3 {[%emt 0:05:20]} e5 {[%emt 0:05:12]}
23. Rd5 {[%emt 0:06:02]} d6 {[%emt 0:03:20]} 24. Bg4 {[%emt 0:05:35]} (24. O-O
$18) 24... Be6 {[%emt 0:02:00]} (24... e3 $16) 25. Bxf5 {[%emt 0:00:19]} Rxf5 {
[%emt 0:01:57]} 26. Qc2 {[%emt 0:10:12]} Qf7 $2 {[%emt 0:04:25]} (26... Rf7 27.
Qxe4 (27. Rd2 Bg4 $16) 27... Nd4) 27. Rxd6 {[%emt 0:00:00] Strongly
threatening a6.} Bxc4 {[%emt 0:00:02]} 28. Qxe4 {[%emt 0:04:29]} (28. Qa4 $142
{[%cal Ya5a6] aiming for a6!} Rf3 29. a6 Bxa6 30. Rxc6 bxc6 31. Qxa6) 28... Rf6
{[%emt 0:00:10]} 29. Rxf6 {[%emt 0:01:22]} gxf6 {[%emt 0:00:02]} 30. f3 {
[%emt 0:02:53]} f5 {[%emt 0:05:03]} 31. Qe3 {[%emt 0:01:38]} f4 {[%emt 0:03:39]
} 32. gxf4 {[%emt 0:00:26]} Qg6 {[%emt 0:00:26]} 33. Rg1 {[%emt 0:02:02]} ({
Don't do} 33. Kf2 Qc2+ 34. Kg3 Qg6+ 35. Kh2 Qc2+ 36. Qf2 Qf5 $18) 33... Qb1+ {
[%emt 0:01:09]} 34. Kf2 {[%emt 0:00:32]} Qc2+ {[%emt 0:00:04]} 35. Kg3 {
[%emt 0:00:32]} Ne7 {[%emt 0:00:45]} (35... Qg6+ $142 36. Kh2 Qh6 37. fxe5
Qxh4+ 38. Kg2 Ne7) 36. Qxe5 {[%emt 0:00:50] Threatens to win with Re1. White
is clearly winning.} Kf7 {[%emt 0:01:37]} 37. Qh5+ {[%emt 0:00:41]} Ke6 {
[%emt 0:00:34]} 38. Qe8 {[%emt 0:02:10] Weighted Error Value: White=0.31/
Black=0.54} 1-0

[Event "44th Chess Olympiad Open 2022"]
[Site "Chennai"]
[Date "2022.08.06"]
[Round "8.28"]
[White "Zrikem, Nassim"]
[Black "Baenziger, Fabian"]
[Result "1/2-1/2"]
[WhiteElo "2075"]
[BlackElo "2451"]
[Annotator "TA"]
[PlyCount "110"]
[EventDate "2022.??.??"]
[TimeControl "60"]

{[%evp 9,110,6,6,6,9,8,15,14,37,5,8,14,8,0,6,0,7,-5,0,0,15,0,8,0,20,0,0,-7,0,0,
0,0,0,-10,0,-17,-22,-23,-37,-40,13,0,0,0,0,-58,-81,-93,-69,-91,-98,-109,-101,
-108,-105,-115,-87,-79,-59,-78,-85,-85,-77,-156,-158,-148,-159,-233,-139,-139,
-70,-70,-70,-71,-71,-50,-44,-44,-44,-44,-44,-44,-44,-44,-44,-44,-44,-44,-44,
-44,-44,-59,0,0,0,0,0,0,0,0,0,0,8]} 1. e4 {[%emt 0:00:17]} c5 {[%emt 0:00:19]}
2. Nf3 {[%emt 0:00:09]} d6 {[%emt 0:00:23]} 3. Bb5+ {[%emt 0:00:24]} Bd7 {
[%emt 0:00:12]} 4. Qe2 {[%emt 0:00:49]} Bxb5 {[%emt 0:03:57]} 5. Qxb5+ {
[%emt 0:00:06]} Qd7 $1 {[%emt 0:00:06]} 6. Qxd7+ {[%emt 0:01:28] B52: Sicilian:
Moscow Variation with 3...Bd7.} Nxd7 {[%emt 0:01:58]} 7. d3 {[%emt 0:05:40]}
Ngf6 {[%emt 0:01:59]} 8. Nc3 {[%emt 0:00:24]} e6 {[%emt 0:01:34]} 9. O-O {
[%emt 0:00:48]} (9. Nb5 {keeps more tension.} Ke7 10. Bf4 Ne8 11. a4) 9... a6 {
[%emt 0:04:17]} 10. a4 {[%emt 0:01:42]} Be7 {[%emt 0:00:05]} 11. Re1 {[%emt 0:
00:00]} Rc8 {[%emt 0:06:39]} 12. Bf4 {[%emt 0:10:36]} O-O {[%emt 0:02:55] [#]}
13. h3 $146 {[%emt 0:15:25]} ({Predecessor:} 13. Rad1 Rfd8 14. h3 {½-½ (14)
Gomez Garrido,C (2511)-Bacallao Alonso,Y (2605) Havana 2018}) 13... Rfd8 {
[%emt 0:03:14]} 14. a5 {[%emt 0:02:40]} Bf8 {[%emt 0:12:03]} 15. g4 {[%emt 0:
00:00]} h6 {[%emt 0:01:00]} 16. Bg3 {[%emt 0:03:10]} d5 {[%emt 0:07:28]} 17. e5
{[%emt 0:04:30]} Nh7 {[%emt 0:03:14]} 18. Nd2 {[%emt 0:01:16]} Nb8 {[%emt 0:00:
00][%cal Yd7b8,Yb8c6,Yc6d4,Yd4e2]} 19. Na4 {[%emt 0:06:15]} Nc6 {[%emt 0:02:48]
} 20. Nb6 {[%emt 0:09:57]} Rc7 {[%emt 0:03:01]} 21. Red1 {[%emt 0:15:08]} Nd4 {
[%emt 0:09:59]} 22. c3 {[%emt 0:01:58]} Ne2+ {[%emt 0:00:00]} 23. Kg2 {[%emt 0:
00:31]} Nxg3 {[%emt 0:00:00]} 24. Kxg3 {[%emt 0:00:30]} f6 {[%emt 0:00:00]} (
24... g5 $15) 25. exf6 {[%emt 0:06:02]} Bd6+ {[%emt 0:00:00]} 26. Kg2 {[%emt 0:
00:53]} gxf6 {[%emt 0:00:00]} 27. Re1 {[%emt 0:01:31]} (27. c4 $11) 27... Nf8
$15 {[%emt 0:00:00]} 28. Ra4 {[%emt 0:06:13]} Rc6 {[%emt 0:06:13]} 29. f4 {
[%emt 0:00:43]} Bc7 {[%emt 0:00:39]} 30. f5 {[%emt 0:00:00] Inhibits Ng6.} Bxb6
{[%emt 0:02:15]} 31. axb6 {[%emt 0:00:07]} Rxb6 {[%emt 0:00:26]} 32. b4 {
[%emt 0:00:29]} cxb4 {[%emt 0:05:03]} 33. Rxb4 {[%emt 0:00:01]} Rdd6 {[%emt 0:
00:20]} 34. Reb1 {[%emt 0:01:04]} Rxb4 {[%emt 0:00:00]} 35. Rxb4 $17 {[%emt 0:
00:19] Endgame KRN-KRN} b5 {[%emt 0:00:00]} 36. Nb3 {[%emt 0:00:53]} (36. fxe6
$142 Nxe6 37. Kf2) 36... exf5 {[%emt 0:01:00]} 37. gxf5 {[%emt 0:00:23]} Rc6 {
[%emt 0:00:04]} 38. c4 {[%emt 0:00:00]} (38. Kf2 $17) 38... bxc4 {[%emt 0:02:
06]} (38... dxc4 $19 39. dxc4 Rxc4 40. Rxc4 bxc4) 39. dxc4 {[%emt 0:00:01]}
dxc4 {[%emt 0:01:15]} (39... Rxc4 $17 40. Rb8 Kf7) 40. Na5 $15 {[%emt 0:00:01]
[%csl Yc4,Yc6]} Rc5 {[%emt 0:00:07][%csl Ya5,Yf5]} 41. Nxc4 {[%emt 0:30:15]}
Rxf5 {[%emt 0:30:03] Hoping for ... Rf4.} 42. Rb6 {[%emt 0:00:00]} a5 {[%emt 0:
00:00]} 43. Ra6 {[%emt 0:00:00]} Rc5 {[%emt 0:00:00]} 44. Nxa5 {[%emt 0:00:00]}
Kg7 {[%emt 0:00:00]} 45. Nb7 {[%emt 0:00:00]} Rc2+ {[%emt 0:00:00]} 46. Kg3 {
[%emt 0:00:00]} Rc3+ {[%emt 0:00:00]} 47. Kh2 {[%emt 0:00:00]} Kg6 {[%emt 0:00:
00]} 48. Nd6 {[%emt 0:00:00]} Nd7 {[%emt 0:00:00]} 49. Ne4 {[%emt 0:00:00]} Rf3
{[%emt 0:00:00]} 50. Re6 {[%emt 0:00:00]} Ne5 {[%emt 0:00:00]} (50... h5 $15)
51. Nxf6 $1 $11 {[%emt 0:00:00] [#] Strongly threatening Ng4+. The position is
equal.} Kf5 {[%emt 0:00:00] Prevents Ng4.} 52. Ra6 {[%emt 0:00:00]} Nd3 {
[%emt 0:00:00]} 53. Ng4 {[%emt 0:00:00]} Kg5 {[%emt 0:00:00]} 54. Rxh6 {
[%emt 0:00:00]} Nf4 {[%emt 0:00:00]} 55. Rh8 {[%emt 0:00:00]} Rxh3+ {[%emt 0:
00:00] And White is the lucky defender. Weighted Error Value: White=0.11 (very
precise) /Black=0.12 (very precise)} 1/2-1/2

[Event "44th Chess Olympiad Open 2022"]
[Site "Chennai"]
[Date "2022.08.06"]
[Round "8.29"]
[White "Bilguun, Sumiya"]
[Black "Averbukh, Alex"]
[Result "1-0"]
[WhiteElo "2463"]
[BlackElo "2155"]
[Annotator "TA"]
[PlyCount "97"]
[EventDate "2022.??.??"]
[TimeControl "60"]

{[%evp 9,97,-6,-11,-8,-16,-4,0,-18,-18,-18,-15,-11,-10,-18,-12,-18,-16,-15,15,
11,15,11,54,48,48,52,70,61,103,103,102,106,103,105,104,96,104,77,85,81,102,90,
152,150,139,68,73,94,104,95,112,108,170,157,155,70,145,97,176,148,151,149,216,
208,243,247,211,240,309,178,295,279,683,675,675,673,909,896,879,885,881,872,
851,846,818,791,844,840,752,720]} 1. e4 {[%emt 0:00:03]} e5 {[%emt 0:00:05]} 2.
Bc4 {[%emt 0:00:13]} Nf6 {[%emt 0:00:08]} 3. d3 {[%emt 0:00:06]} c6 {[%emt 0:
00:00]} 4. Bb3 {[%emt 0:00:10]} a5 {[%emt 0:00:25][%cal Ya7a5,Ya5a4]} 5. a3 {
[%emt 0:00:20]} d5 {[%emt 0:01:16]} 6. Nf3 {[%emt 0:00:43] C24: Bishop's
Opening: 2...Nf6.} a4 {[%emt 0:00:24]} 7. Ba2 {[%emt 0:00:14]} Bd6 {[%emt 0:00:
30]} 8. Nc3 {[%emt 0:01:59][%cal Re4d5] The position is equal.} d4 {[%emt 0:00:
27]} 9. Ne2 {[%emt 0:00:26]} O-O {[%emt 0:00:18]} 10. O-O {[%emt 0:00:00]} c5 {
[%emt 0:00:21]} 11. Ng3 {[%emt 0:00:47]} Be6 {[%emt 0:00:45] [#]} 12. Nf5 $146
{[%emt 0:02:29]} ({Predecessor:} 12. h3 Nc6 13. Nh4 g6 14. Bg5 Bxa2 15. Rxa2
Be7 16. f4 Nd7 17. Bxe7 Qxe7 18. Qg4 {1-0 (85) Kovalev,V (2640) -Fridman,D 
(2640) Liepaja 2017}) 12... Bxf5 {[%emt 0:04:24]} 13. exf5 {[%emt 0:00:00]} Nc6
{[%emt 0:02:02]} 14. Bg5 {[%emt 0:03:12][%cal Yc1g5,Yg5h4,Yh4g3,Yg3e5]} h6 {
[%emt 0:00:39]} 15. Bh4 {[%emt 0:00:30]} Be7 {[%emt 0:00:00]} 16. Re1 {[%emt 0:
00:58]} Nd7 {[%emt 0:03:15]} 17. Bg3 {[%emt 0:03:19]} Bf6 {[%emt 0:01:33]} 18.
h3 {[%emt 0:13:19]} Ne7 {[%emt 0:16:49]} 19. Nxe5 {[%emt 0:01:11]} Nxe5 {
[%emt 0:01:03]} 20. Bxe5 {[%emt 0:00:45]} Nxf5 {[%emt 0:00:00]} 21. Qh5 {
[%emt 0:07:50]} Nd6 {[%emt 0:03:37]} 22. Bf4 {[%emt 0:08:55]} Rc8 {[%emt 0:04:
30]} 23. Qd5 {[%emt 0:02:25]} Rc6 {[%emt 0:02:55]} 24. Re2 {[%emt 0:01:34]} Nc8
{[%emt 0:09:35]} 25. Qh5 $36 {[%emt 0:00:23] White has strong initiative.} Ne7
{[%emt 0:04:54]} (25... Bg5 $142 26. Bxg5 Qxg5 27. Qxg5 hxg5) 26. Rae1 {
[%emt 0:00:52] White is more active.} Qd7 {[%emt 0:01:23]} 27. Qf3 {[%emt 0:06:
45]} ({White should try} 27. g4 $16) 27... Ng6 {[%emt 0:07:53]} 28. Bg3 {
[%emt 0:03:32]} Bg5 {[%emt 0:05:37]} 29. Qd5 {[%emt 0:07:23]} Qxd5 {[%emt 0:06:
28]} 30. Bxd5 {[%emt 0:00:13]} Rb6 {[%emt 0:00:00]} (30... Rf6 $16 {was worth
a try.}) 31. Bc7 $1 $18 {[%emt 0:03:17] A strong pair of Bishops.} Rxb2 {
[%emt 0:05:37] [#]} 32. g3 {[%emt 0:00:16] Against Bf4} (32. Bd6 $1 $16) 32...
Kh7 {[%emt 0:02:33] [#]} (32... Bd8 $1 $14 33. Bd6 Ba5) 33. Re8 $1 $16 {
[%emt 0:15:57]} Rxc2 {[%emt 0:05:06]} (33... Bf6 $16) 34. h4 {[%emt 0:01:28]}
Rxe8 {[%emt 0:02:35]} (34... Be3 35. Rxf8 Bxf2+ 36. Kf1 Bxe1 37. Be4 (37. Rxf7
Rc1 $16)) 35. Rxe8 {[%emt 0:00:05]} Bf6 {[%emt 0:01:17]} (35... Nxh4 $16 36.
gxh4 Bxh4) 36. Bxf7 $18 {[%emt 0:03:39]} h5 {[%emt 0:01:38]} 37. Bg8+ {[%emt 0:
02:29]} Kh6 {[%emt 0:00:10]} 38. Bd5 {[%emt 0:00:02] Threatens to win with Be4.
} Ne7 {[%emt 0:01:26]} 39. Bxb7 {[%emt 0:00:58]} (39. Be4 $142 {[%cal Re8h8]}
g6 40. Rb8 (40. Bxb7 Rc3 $16)) 39... g5 {[%emt 0:00:58]} (39... c4 $142 40. Be4
g6 41. dxc4 Rxc4 42. Bf4+ Kh7) 40. Bd8 {[%emt 0:01:32]} Re2 {[%emt 0:01:16]} (
40... gxh4 41. Bxe7 Bxe7) 41. Be4 {[%emt 0:30:35] White is clearly winning.}
Re1+ {[%emt 0:05:13]} 42. Kg2 {[%emt 0:00:00]} Nd5 {[%emt 0:00:25]} 43. hxg5+ {
[%emt 0:00:00]} Bxg5 {[%emt 0:00:00]} 44. Bxg5+ {[%emt 0:00:00]} Kxg5 {[%emt 0:
00:52] KRB-KRN} 45. Re5+ {[%emt 0:00:00]} Kf6 {[%emt 0:00:10]} 46. Rxd5 {
[%emt 0:00:00]} c4 {[%emt 0:00:00]} 47. Rxd4 {[%emt 0:00:00]} cxd3 {[%emt 0:00:
26]} 48. Bxd3 {[%emt 0:00:00]} Rd1 {[%emt 0:00:25]} 49. Rf4+ {[%emt 0:00:00]
Weighted Error Value: White=0.11 (very precise) /Black=0.34} 1-0